bitfinex-derivatives/quotes_ETHF0:USTF0_20250726
["timestamp","ask_amount","ask_price","bid_price","bid_amount"]
[1753568178385,22.0243,3757.4,3757.3,3.46894]
[1753568178584,3.2078,3757.5,3757.4,1.68252]
[1753568178785,24.7588,3757.5,3757.4,2.94392]
[1753568178984,3.2078,3757.5,3757.4,3.46892]
[1753568179583,3.6701,3757.5,3757.4,3.46892]
[1753568179792,4.7601,3757.5,3757.4,3.46892]
[1753568180084,5.2052,3757.5,3757.4,3.46892]
[1753568182086,1.9974,3757.5,3757.4,3.46892]
[1753568182289,5.73731,3757.5,3757.4,3.46892]
[1753568182486,5.73731,3757.5,3757.4,2.9368]
[1753568182687,5.73731,3757.5,3757.4,3.46892]
[1753568183483,5.73731,3757.5,3757.4,1.41682]
[1753568183694,5.73731,3757.5,3757.4,2.12802]
[1753568183988,5.2052,3757.5,3757.4,2.67822]
[1753568184186,5.73731,3757.5,3757.4,2.485]
[1753568184689,5.2052,3757.5,3757.4,3.46892]
[1753568185391,5.73731,3757.5,3757.4,3.46892]
[1753568185888,5.73731,3757.5,3757.4,2.9368]
[1753568186088,5.73731,3757.5,3757.4,3.46892]
[1753568187797,5.1151,3757.5,3757.4,3.46892]
[1753568188297,3.6701,3757.5,3757.4,3.46892]
[1753568188790,4.74,3757.5,3757.4,3.46892]
[1753568189400,24.7498,3757.5,3757.4,3.46892]
[1753568190685,25.1142,3757.5,3757.4,3.46892]
[1753568191990,24.7498,3757.5,3757.4,3.46892]
[1753568194294,25.1142,3757.5,3757.4,3.46892]
[1753568194899,21.9064,3757.5,3757.4,3.46892]
[1753568197895,22.6119,3757.5,3757.4,3.46892]
[1753568198702,23.0781,3757.5,3757.4,3.46892]
[1753568198896,23.4743,3757.5,3757.4,3.46892]
[1753568199999,24.27752036,3757.5,3757.4,3.46892]
[1753568200402,24.84701852,3757.5,3757.4,0.525]
[1753568200594,0.8624,3757.2,3757.1,0.53216]
[1753568200796,23.5017,3757.2,3757.1,0.53216]
[1753568201102,23.5017,3757.2,3757.1,1.02666]
[1753568201595,23.4643,3757.2,3757.1,3.38126]
[1753568202999,4.0702,3757.7,3757.6,1.1286]
[1753568203199,27.3372945,3757.7,3757.6,0.4945]
[1753568203396,0.93392,3757.4,3757.3,0.4945]
[1753568203704,24.8350345,3757.4,3757.3,0.4945]
[1753568204305,24.8350345,3757.4,3757.3,1.02664]
[1753568204605,24.3029145,3757.4,3757.3,1.02664]
[1753568205200,24.2655145,3757.4,3757.3,1.02664]
[1753568205394,24.2655145,3757.4,3757.3,2.08774]
[1753568209307,24.2655145,3757.4,3757.3,2.59284]
[1753568210707,24.2655145,3757.4,3757.3,2.92404]
[1753568212109,24.7976345,3757.4,3757.3,2.92404]
[1753568213109,24.79771687,3757.4,3757.3,2.08774]
[1753568213307,24.83511687,3757.4,3757.3,0.4945]
[1753568214308,24.83511687,3757.4,3757.3,1.02664]
[1753568215605,24.83511687,3757.4,3757.3,0.4945]
[1753568216215,24.83511687,3757.4,3757.3,1.02664]
[1753568216512,24.83511687,3757.4,3757.3,0.4945]
[1753568218310,24.83511687,3757.4,3757.3,1.02664]
[1753568218505,24.83511687,3757.4,3757.3,0.4945]
[1753568220613,24.79771687,3757.4,3757.3,2.58444]
[1753568221012,24.79771687,3757.4,3757.3,2.3777]
[1753568221213,22.69769687,3757.4,3757.3,3.35664]
[1753568221411,1.441,3757.6,3757.5,2.87061]
[1753568221612,23.76023788,3757.6,3757.5,3.37361]
[1753568221812,22.31923788,3757.6,3757.5,3.37361]
[1753568224012,24.11953788,3757.6,3757.5,3.37361]
[1753568224913,23.3163,3757.6,3757.5,3.37361]
[1753568226315,23.8484,3757.6,3757.5,2.8415]
[1753568227618,2.33244,3757.3,3757.2,0.503]
[1753568227811,27.05024,3757.3,3757.2,0.503]
[1753568228010,27.05024,3757.3,3757.2,1.5497]
[1753568228210,27.05024,3757.3,3757.2,2.3947]
[1753568228514,27.05024,3757.3,3757.2,2.8415]
[1753568230715,27.85331448,3757.3,3757.2,0.8517]
[1753568230916,27.86901448,3757.3,3757.2,0.503]
[1753568231912,0.7773,3756.6,3756.5,0.5196]
[1753568232107,1.0136,3756.5,3756.4,0.53226]
[1753568232422,1.8003,3756.3,3756.2,2.88942561]
[1753568232717,23.3063,3756.3,3756.2,3.39242561]
[1753568233014,23.83858,3756.3,3756.2,2.86013561]
[1753568233218,23.3063,3756.3,3756.2,3.39242561]
[1753568233811,1.12,3756.3,3756.2,3.39242561]
[1753568234019,1.53015,3756.5,3756.4,1.65317]
[1753568234218,23.83755,3756.5,3756.4,2.8415]
[1753568236517,27.04535,3756.5,3756.4,2.8415]
[1753568237823,27.04535,3756.5,3756.4,3.37377]
[1753568238922,26.5131,3756.5,3756.4,3.37377]
[1753568239127,26.488,3756.5,3756.4,3.37377]
[1753568239715,3.2078,3756.5,3756.4,3.37377]
[1753568239915,0.4651,3757.1,3757.0,1.32767]
[1753568240121,23.3033,3757.1,3757.0,3.37367]
[1753568240325,24.10549203,3757.1,3757.0,3.37367]
[1753568240520,22.30519203,3757.1,3757.0,3.37367]
[1753568240726,0.80219203,3757.1,3757.0,3.37367]
[1753568240928,3.2078,3757.3,3757.2,1.65305]
[1753568241127,3.2078,3757.3,3757.2,3.37365]
[1753568241929,2.106,3758.0,3757.9,3.37355]
[1753568242117,26.8148,3758.0,3757.9,3.37355]
[1753568243224,27.34684,3758.0,3757.9,2.8415]
[1753568243525,0.53207,3757.9,3757.5,0.5196]
[1753568243722,2.2694,3757.6,3757.5,2.25271]
[1753568243930,23.7694,3757.6,3757.5,3.37361]
[1753568245020,23.7694,3757.6,3757.5,2.8415]
[1753568245228,1.64022,3757.4,3757.3,0.503]
[1753568245528,0.44,3757.4,3757.3,2.8415]
[1753568245829,25.67991,3757.6,3757.5,2.8415]
[1753568246125,27.50931,3757.6,3757.5,2.8415]
[1753568246528,26.9772,3757.6,3757.5,3.37361]
[1753568246723,24.7078,3757.6,3757.5,3.37361]
[1753568246927,3.2078,3757.6,3757.5,3.37361]
[1753568247225,24.7038,3757.6,3757.5,3.37361]
[1753568248136,26.0799,3757.6,3757.5,3.37361]
[1753568248329,26.8656,3757.6,3757.5,3.37361]
[1753568248525,27.5601,3757.6,3757.5,3.37361]
[1753568249024,27.028,3757.6,3757.5,3.37361]
[1753568249420,27.5601,3757.6,3757.5,3.37361]
[1753568250130,0.53214,3757.3,3757.2,2.2723]
[1753568250323,24.85414,3757.3,3757.2,2.7783]
[1753568250527,24.34334,3757.3,3757.2,2.7783]
[1753568250927,23.8112,3757.3,3757.2,3.31045]
[1753568251529,24.34334,3757.3,3757.2,3.31045]
[1753568252234,21.492,3757.3,3757.2,3.31045]
[1753568252533,5.27341,3757.6,3757.5,2.7783]
[1753568252833,27.55011,3757.6,3757.5,2.7783]
[1753568253030,25.65156716,3757.6,3757.5,2.7783]
[1753568253229,28.85936716,3757.6,3757.5,2.7783]
[1753568254229,28.85936716,3757.6,3757.5,2.2587]
[1753568254428,28.85936716,3757.6,3757.5,0.506]
[1753568255729,28.06091,3757.6,3757.5,0.506]
[1753568256637,28.06091,3757.6,3757.5,2.2587]
[1753568256834,28.06091,3757.6,3757.5,2.7783]
[1753568258939,27.55011,3757.6,3757.5,2.7783]
[1753568259133,26.85561,3757.6,3757.5,2.7783]
[1753568260934,27.55011,3757.6,3757.5,2.7783]
[1753568261639,26.85561,3757.6,3757.5,2.7783]
[1753568262136,27.55011,3757.6,3757.5,2.7783]
[1753568263140,4.25311,3757.6,3757.5,3.31041]
[1753568263334,25.73311,3757.6,3757.5,3.31041]
[1753568263843,21.48,3757.6,3757.5,3.31041]
[1753568264939,2.33808,3757.8,3757.7,1.62838]
[1753568265141,3.13543581,3757.8,3757.7,3.31038]
[1753568265336,24.61343581,3757.8,3757.7,3.31038]
[1753568265639,25.12663581,3757.8,3757.7,3.31038]
[1753568266234,24.59455581,3757.8,3757.7,3.31038]
[1753568266542,0.79735581,3757.8,3757.7,3.31038]
[1753568266739,3.2078,3758.0,3757.9,0.85465]
[1753568267041,3.2078,3758.0,3757.9,3.31035]
[1753568267042,25.4810649,3758.0,3757.9,3.31035]
[1753568267337,3.2078,3758.0,3757.9,3.31035]
[1753568267541,0.6945,3758.7,3758.5,0.7737]
[1753568267737,2.3192,3758.9,3758.8,2.4557]
[1753568267940,24.59225467,3758.9,3758.8,3.31023]
[1753568269636,24.59225467,3758.9,3758.8,2.7783]
[1753568269637,25.12416467,3758.9,3758.8,2.7783]
[1753568269846,25.63496467,3758.9,3758.8,2.7783]
[1753568271848,25.10305467,3758.9,3758.8,3.31023]
[1753568272042,25.63496467,3758.9,3758.8,3.31023]
[1753568272243,25.10305467,3758.9,3758.8,3.31023]
[1753568272443,24.59225467,3758.9,3758.8,3.31023]
[1753568272749,23.89775467,3758.9,3758.8,3.31023]
[1753568272941,22.94255467,3758.9,3758.8,3.31023]
[1753568273138,22.26505467,3758.9,3758.8,3.31023]
[1753568273542,23.10405467,3758.9,3758.8,3.31023]
[1753568273743,24.58425467,3758.9,3758.8,3.31023]
[1753568275944,23.88975467,3758.9,3758.8,3.31023]
[1753568276743,24.58425467,3758.9,3758.8,3.31023]
[1753568277043,23.10405467,3758.9,3758.8,3.31023]
[1753568277745,22.26505467,3758.9,3758.8,3.31023]
[1753568280045,22.77625467,3758.9,3758.8,3.31023]
[1753568280650,0.79705467,3758.9,3758.8,3.31023]
[1753568280847,3.2078,3759.0,3758.9,1.64341]
[1753568281047,24.6658,3759.0,3758.9,3.32701]
[1753568282257,3.2078,3759.0,3758.9,3.32701]
[1753568282451,24.6658,3759.0,3758.9,3.32701]
[1753568282646,3.2078,3759.0,3758.9,3.32701]
[1753568282849,0.6822,3759.4,3758.9,3.32701]
[1753568282850,24.6638,3759.4,3759.3,3.32696]
[1753568283251,1.5878,3759.8,3759.7,1.6433]
[1753568283454,24.52173535,3759.8,3759.7,3.3269]
[1753568284546,25.54422535,3759.8,3759.7,3.3269]
[1753568285042,25.54422535,3759.8,3759.7,2.7951]
[1753568285253,25.54422535,3759.8,3759.7,3.3269]
[1753568285651,25.54422535,3759.8,3759.7,0.497]
[1753568286048,25.54422535,3759.8,3759.7,1.0288]
[1753568286250,25.54422535,3759.8,3759.7,1.7156]
[1753568286649,25.54422535,3759.8,3759.7,0.497]
[1753568287156,3.2925,3759.7,3759.6,0.53181]
[1753568287549,3.2925,3759.7,3759.6,3.32691]
[1753568287550,2.7607,3759.7,3759.6,3.32691]
[1753568288055,1.2766,3759.9,3759.8,1.64328]
[1753568288353,23.2368,3759.9,3759.8,3.32688]
[1753568288653,22.2978,3759.9,3759.8,3.32688]
[1753568288856,21.649,3759.9,3759.8,3.32688]
[1753568291956,0.2,3759.9,3759.8,3.32688]
[1753568292260,0.2,3759.9,3759.8,8.32688]
[1753568292451,0.2,3759.9,3759.8,3.32688]
[1753568296960,1e-05,3759.9,3759.8,11.53468]
[1753568297159,26.9148,3760.8,3760.7,3.32676]
[1753568297558,4.3678,3760.8,3760.7,3.32676]
[1753568297756,3.29234,3760.8,3760.7,2.21526]
[1753568297956,2.27,3760.8,3760.7,3.32676]
[1753568299058,2.7607,3760.8,3760.7,3.32676]
[1753568300051,2.27,3760.8,3760.7,3.32676]
[1753568302766,24.1907,3761.1,3761.0,3.32672]
[1753568302955,2.27,3761.1,3761.0,3.32672]
[1753568303161,3.2923,3761.1,3761.0,2.55242]
[1753568303361,3.2923,3761.1,3761.0,2.98952]
[1753568304067,2.7607,3761.1,3761.0,2.98952]
[1753568304270,3.2923,3761.1,3761.0,2.98952]
[1753568304766,2.7607,3761.1,3761.0,2.98952]
[1753568305066,2.7607,3761.1,3761.0,3.32672]
[1753568305263,2.27,3761.1,3761.0,3.32672]
[1753568305468,0.5112,3761.1,3761.0,3.32672]
[1753568308161,2.2631,3761.1,3761.0,3.32672]
[1753568311268,1.5878,3761.1,3761.0,3.32672]
[1753568311865,0.2,3761.9,3761.3,1.32892]
[1753568312071,0.018,3762.3,3760.5,2.65841]
[1753568312072,1.1212,3762.3,3762.2,1.64185]
[1753568312263,1.9136875,3762.3,3762.2,6.43785]
[1753568312670,3.5947875,3762.3,3762.2,6.43785]
[1753568314566,3.5947875,3762.3,3762.2,5.95775]
[1753568315575,2.8023,3762.3,3762.2,5.95775]
[1753568317275,2.8023,3762.3,3762.2,6.43785]
[1753568319275,0.018,3762.3,3762.2,6.43785]
[1753568323181,2.8023,3762.3,3762.2,6.43785]
[1753568323380,2.8023,3762.3,3762.2,5.95775]
[1753568323976,2.8023,3762.3,3762.2,6.43785]
[1753568325882,0.018,3762.3,3762.2,6.43785]
[1753568328477,1.1032,3763.2,3763.1,3.22992]
[1753568328675,1.88740423,3763.2,3763.1,3.22992]
[1753568328876,3.07480423,3763.2,3763.1,3.22992]
[1753568329077,0.3281,3763.2,3763.1,3.22992]
[1753568329276,2.2906,3763.5,3763.4,1.64168]
[1753568329482,3.07473875,3763.5,3763.4,6.43768]
[1753568330371,2.39943875,3763.5,3763.4,6.43768]
[1753568330572,3.07473875,3763.5,3763.4,6.43768]
[1753568331983,0.78413875,3763.5,3763.4,11.43768]
[1753568332881,0.2,3763.9,3763.8,0.53122]
[1753568333184,1.82434473,3763.9,3763.8,6.43762]
[1753568333483,2.28324473,3763.9,3763.8,6.43762]
[1753568333679,1.4991,3763.9,3763.8,6.43762]
[1753568333878,3.76838297,3763.9,3763.8,6.43762]
[1753568334078,3.76838297,3763.9,3763.8,4.99572]
[1753568334885,3.27468297,3763.9,3763.8,6.43762]
[1753568335081,0.987,3763.9,3763.8,6.43762]
[1753568335885,2.9843,3763.9,3763.8,4.99572]
[1753568336186,2.9843,3763.9,3763.8,4.07182]
[1753568336375,2.9843,3763.9,3763.8,4.55192]
[1753568336575,2.9843,3763.9,3763.8,6.43762]
[1753568339483,3.51551,3763.9,3763.8,3.2078]
[1753568339689,3.51551,3763.9,3763.8,3.73902]
[1753568339693,2.9843,3763.9,3763.8,3.73902]
[1753568341985,2.4906,3763.9,3763.8,6.54322]
[1753568342186,0.2,3763.9,3763.8,6.54322]
[1753568343389,2.9705,3763.9,3763.8,6.54322]
[1753568343591,2.9705,3763.9,3763.8,3.73902]
[1753568344594,2.9705,3763.9,3763.8,4.25982]
[1753568344793,2.9705,3763.9,3763.8,4.59302]
[1753568347201,2.9705,3763.9,3763.8,6.54322]
[1753568352412,0.2,3763.9,3763.8,6.54322]
[1753568356007,2.9705,3763.9,3763.8,4.5324]
[1753568356207,2.9705,3763.9,3763.8,3.73902]
[1753568356607,2.9705,3763.9,3763.8,4.59302]
[1753568357612,2.9705,3763.9,3763.8,5.72042]
[1753568357809,2.9705,3763.9,3763.8,6.18122]
[1753568358816,3.50171,3763.9,3763.8,3.73902]
[1753568359512,3.50171,3763.9,3763.8,4.25982]
[1753568359711,2.9705,3763.9,3763.8,4.59302]
[1753568359911,2.9705,3763.9,3763.8,5.06362]
[1753568360108,2.9705,3763.9,3763.8,6.18122]
[1753568360311,0.2,3763.9,3763.8,6.53172]
[1753568367214,2.4532,3763.9,3763.8,6.53172]
[1753568374118,2.9369,3763.9,3763.8,4.59302]
[1753568375122,2.9369,3763.9,3763.8,5.26272]
[1753568375823,2.9369,3763.9,3763.8,3.73902]
[1753568376220,2.9369,3763.9,3763.8,5.68202]
[1753568377218,1.3066,3763.9,3763.8,5.68202]
[1753568377424,0.6849,3763.9,3763.8,6.46442]
[1753568377824,0.9978,3763.9,3763.8,6.46442]
[1753568378026,1.6313,3763.9,3763.8,6.46442]
[1753568378428,2.0881,3763.9,3763.8,6.46442]
[1753568378725,0.5129,3763.9,3763.8,6.46442]
[1753568379417,0.9978,3763.9,3763.8,6.46442]
[1753568379616,2.4339,3763.9,3763.8,6.46442]
[1753568380425,2.9176,3763.9,3763.8,6.46442]
[1753568380624,2.9176,3763.9,3763.8,3.73902]
[1753568381024,2.9176,3763.9,3763.8,4.58062]
[1753568381322,2.9176,3763.9,3763.8,6.46442]
[1753568382421,2.9176,3763.9,3763.8,4.58062]
[1753568382618,2.9176,3763.9,3763.8,5.01232]
[1753568382828,2.9176,3763.9,3763.8,6.46442]
[1753568383019,2.4339,3763.9,3763.8,6.46442]
[1753568383526,0.5129,3763.9,3763.8,6.46442]
[1753568384328,0.2,3763.9,3763.8,6.46442]
[1753568384523,3.2078,3765.5,3764.3,3.25655]
[1753568384725,2.7176,3765.0,3764.9,5.61585]
[1753568384924,3.50552764,3765.0,3764.9,5.94415]
[1753568385124,3.50552764,3765.0,3764.9,6.46425]
[1753568385325,2.2339,3765.0,3764.9,6.46425]
[1753568385530,0.3129,3765.2,3765.1,1.29104]
[1753568385724,1.6004,3765.2,3765.1,3.25644]
[1753568385924,3.02162323,3765.2,3765.1,3.25644]
[1753568386929,0.8158,3765.3,3765.2,1.61252]
[1753568387230,2.7356,3765.3,3765.2,3.25642]
[1753568387420,2.7356,3765.3,3765.2,1.80432]
[1753568388523,1.749,3765.0,3764.9,3.2078]
[1753568388727,2.7176,3764.9,3764.8,0.53107]
[1753568389222,2.7176,3764.6,3764.5,6.46432]
[1753568389526,0.3129,3764.6,3764.5,6.46432]
[1753568389920,1.915,3764.9,3764.8,1.0815]
[1753568390120,1.915,3764.9,3764.8,2.80238]
[1753568390121,2.7176,3764.9,3764.8,2.80238]
[1753568390317,2.7176,3764.9,3764.8,0.8416]
[1753568390518,2.7176,3764.9,3764.8,0.3215]
[1753568390722,1.6021,3764.8,3764.6,0.5311]
[1753568390919,1.64661,3764.6,3764.5,3.2078]
[1753568391124,3.24871,3764.6,3764.5,3.2078]
[1753568391420,1.43222852,3766.6,3764.5,5.2635]
[1753568391618,0.4849,3767.4,3764.5,5.2635]
[1753568391619,3.2078,3769.8,3766.6,0.2661]
[1753568391821,3.33758307,3770.9,3770.8,0.53023]
[1753568392030,0.22544182,3770.9,3770.8,0.7436368]
[1753568392220,0.018,3771.3,3770.8,0.7436368]
[1753568392422,0.4369,3772.0,3771.3,0.048]
[1753568392619,13.2584,3771.9,3771.4,0.61767974]
[1753568392828,13.2584,3771.9,3771.8,3.2078]
[1753568393130,64.002,3774.0,3771.8,4.77784471]
[1753568393324,25.83668204,3772.7,3772.2,3.2078]
[1753568393522,0.4837,3771.1,3771.0,0.53021]
[1753568393829,0.4837,3771.1,3771.0,2.15098823]
[1753568394028,9.85978204,3771.1,3771.0,2.15098823]
[1753568394229,9.37608204,3771.1,3771.0,2.15098823]
[1753568394532,10.49448204,3771.1,3771.0,1.48128823]
[1753568394833,40.7116475,3771.1,3771.0,1.48128823]
[1753568395231,3.2078,3771.8,3771.0,0.95107823]
[1753568395433,26.091,3772.4,3771.4,0.6697]
[1753568395624,26.091,3772.4,3771.1,0.95107823]
[1753568395625,8.52791204,3771.2,3771.1,0.53019]
[1753568395828,9.01281204,3771.2,3771.1,2.65025933]
[1753568396134,9.64631204,3771.2,3771.1,1.71999]
[1753568396334,9.01281204,3771.2,3771.1,3.14858821]
[1753568396930,0.4849,3771.9,3771.1,0.92859821]
[1753568397131,3.2078,3771.6,3771.2,2.61839821]
[1753568397331,0.4849,3771.5,3771.4,2.72665]
[1753568397541,16.5549,3771.5,3771.4,1.45874821]
[1753568397729,42.0407775,3771.5,3771.4,1.45874821]
[1753568398125,13.2576,3771.4,3771.0,1.89301095]
[1753568398330,21.95796546,3771.5,3770.9,0.53021]
[1753568398331,3.2965,3771.0,3770.9,0.53021]
[1753568398537,16.5557,3771.0,3770.9,0.53021]
[1753568398738,40.14856655,3771.0,3770.9,0.53021]
[1753568399432,2.2468,3770.9,3770.3,1.9244]
[1753568399629,10.88721204,3770.4,3770.3,1.396]
[1753568399830,10.88721204,3770.4,3770.3,3.7855]
[1753568400028,24.14881204,3770.4,3770.3,3.7855]
[1753568401537,22.71661884,3770.4,3770.3,3.7855]
[1753568402336,20.35731884,3770.4,3770.3,3.7855]
[1753568402635,21.40701884,3770.4,3770.3,3.7855]
[1753568402836,22.71661884,3770.4,3770.3,3.7855]
[1753568403041,48.82561884,3770.4,3770.3,3.7855]
[1753568403237,22.71661884,3770.4,3770.3,3.7855]
[1753568403440,48.81961884,3770.4,3770.3,1.396]
[1753568403639,49.75681884,3770.4,3770.3,1.396]
[1753568404536,64.82177335,3770.4,3770.3,0.5303]
[1753568404731,3.2965,3770.3,3770.2,0.53032]
[1753568404936,19.7667,3770.3,3770.2,0.53032]
[1753568405237,41.92737335,3770.3,3770.2,0.53032]
[1753568405435,41.92737335,3770.3,3770.2,1.15617599]
[1753568407245,67.92737335,3770.3,3770.2,1.15617599]
[1753568407936,67.92737335,3770.3,3770.2,2.08144942]
[1753568408141,41.92737335,3770.3,3770.2,2.08144942]
[1753568408440,67.89337335,3770.3,3770.2,1.15617599]
[1753568408642,67.89337335,3770.3,3770.2,1.15617639]
[1753568408837,63.74837335,3770.3,3770.2,7.52027907]
[1753568409031,63.74837335,3770.3,3770.2,6.59487639]
[1753568409231,63.74837335,3770.3,3770.2,6.21769629]
[1753568409736,63.72237335,3770.3,3770.2,6.55675401]
[1753568409936,63.72237335,3770.3,3770.2,5.96902]
[1753568410139,63.72237335,3770.3,3770.2,6.75895323]
[1753568410545,63.72237335,3770.3,3770.2,7.3467983]
[1753568410745,63.72237335,3770.3,3770.2,7.09812229]
[1753568411047,63.72237335,3770.3,3770.2,7.34679207]
[1753568411642,63.72237335,3770.3,3770.2,7.09811606]
[1753568412243,63.72237335,3770.3,3770.2,7.34712732]
[1753568412546,38.71877335,3770.3,3770.2,2.77412732]
[1753568412742,64.55077335,3770.3,3770.2,4.06382732]
[1753568413042,64.55077335,3770.3,3770.2,6.28842732]
[1753568413247,38.71877335,3770.3,3770.2,6.28842732]
[1753568413450,64.54177335,3770.3,3770.2,6.28842732]
[1753568413838,64.54177335,3770.3,3770.2,7.34712732]
[1753568414149,38.71877335,3770.3,3770.2,7.34712732]
[1753568414338,64.54177335,3770.3,3770.2,7.34712732]
[1753568415047,47.20001884,3770.3,3770.2,7.34712732]
[1753568415249,46.15031884,3770.3,3770.2,7.34712729]
[1753568415749,48.50961884,3770.3,3770.2,7.34712729]
[1753568416049,24.86021884,3770.3,3770.2,7.34712729]
[1753568416251,50.61921884,3770.3,3770.2,7.34712729]
[1753568416449,50.61921884,3770.3,3770.2,9.19767217]
[1753568416846,50.61921884,3770.3,3770.2,7.34712729]
[1753568417052,24.86021884,3770.3,3770.2,7.34712729]
[1753568417357,50.58621884,3770.3,3770.2,7.34712729]
[1753568417555,50.56421884,3770.3,3770.2,7.34712729]
[1753568417751,50.55021884,3770.3,3770.2,7.34712729]
[1753568418554,50.55021884,3770.3,3770.2,9.19767217]
[1753568418750,24.86021884,3770.3,3770.2,9.19767217]
[1753568418958,50.51621884,3770.3,3770.2,9.19767217]
[1753568419356,50.51921884,3770.3,3770.2,7.34712729]
[1753568420348,23.42786074,3770.3,3770.2,7.34712729]
[1753568420663,49.07986074,3770.3,3770.2,7.34712729]
[1753568421253,3.2078,3770.9,3770.2,4.09192729]
[1753568421461,7.37592719,3770.6,3770.5,5.96898]
[1753568421653,7.37592719,3770.6,3770.5,7.34708729]
[1753568421957,20.63672719,3770.6,3770.5,9.22291098]
[1753568422158,46.23672719,3770.6,3770.5,9.22291098]
[1753568422352,22.99602719,3770.6,3770.5,8.8834129]
[1753568422553,48.59302719,3770.6,3770.5,8.8834129]
[1753568422752,49.53022719,3770.6,3770.5,8.8834129]
[1753568423051,49.53022719,3770.6,3770.5,8.87379709]
[1753568423252,48.58402719,3770.6,3770.5,8.84483436]
[1753568423451,48.58402719,3770.6,3770.5,6.96901067]
[1753568423855,48.58402719,3770.6,3770.5,6.17907744]
[1753568424256,48.56002719,3770.6,3770.5,5.95936419]
[1753568424452,48.56002719,3770.6,3770.5,7.83742963]
[1753568424656,48.56002719,3770.6,3770.5,5.95936419]
[1753568425259,48.53202719,3770.6,3770.5,5.95936419]
[1753568425860,22.99602719,3770.6,3770.5,5.95936419]
[1753568426159,48.49602719,3770.6,3770.5,5.95936419]
[1753568426364,64.4981817,3770.6,3770.5,0.53028]
[1753568426864,64.4981817,3770.6,3770.5,1.99128]
[1753568427050,64.4981817,3770.6,3770.5,5.96898]
[1753568427249,38.9981817,3770.6,3770.5,5.96898]
[1753568427454,12.69674,3770.6,3770.5,5.96898]
[1753568427651,3.2078,3770.9,3770.8,5.99934]
[1753568427851,20.55975451,3770.9,3770.8,5.99934]
[1753568428061,5.4948,3770.9,3770.8,5.99934]
[1753568428263,4.6554,3771.2,3771.1,5.99929]
[1753568428564,19.9901168,3770.6,3770.5,2.90148]
[1753568428763,25.542,3770.6,3770.5,5.99938]
[1753568429461,5.5351,3771.0,3770.9,1.94702]
[1753568429657,20.60005451,3771.0,3770.9,1.94702]
[1753568429857,38.99907131,3771.0,3770.9,5.99932]
[1753568430259,64.54007131,3771.0,3770.9,5.99932]
[1753568430762,65.07028131,3771.0,3770.9,0.53022]
[1753568430964,65.07028131,3771.0,3770.3,1.32575]
[1753568430965,5.5351,3770.2,3770.1,5.99943]
[1753568431164,30.1974,3770.2,3770.1,5.99943]
[1753568431859,3.2078,3770.5,3770.1,2.73143]
[1753568432063,3.2952,3770.5,3770.4,5.99939]
[1753568432260,28.8442,3770.5,3770.4,5.99939]
[1753568432466,47.2432168,3770.5,3770.4,5.99939]
[1753568432663,21.6942168,3770.5,3770.4,5.99939]
[1753568432861,49.4791168,3770.5,3770.4,0.53029]
[1753568433162,52.6869168,3770.5,3770.4,0.53029]
[1753568433766,53.2171968,3770.5,3770.4,0.53029]
[1753568433967,52.6869168,3770.5,3770.3,0.5303]
[1753568434161,23.2382168,3770.4,3770.3,1.4168]
[1753568434359,23.9341168,3770.4,3770.3,1.94711]
[1753568434666,49.4731168,3770.4,3770.3,3.57911]
[1753568435065,49.4491168,3770.4,3770.3,3.57911]
[1753568435267,49.4491168,3770.4,3770.3,8.85611]
[1753568435765,64.51407131,3770.4,3770.3,5.80731]
[1753568436260,65.04436131,3770.4,3770.3,5.80731]
[1753568436461,65.02736131,3770.4,3770.3,5.80731]
[1753568436665,65.02736131,3770.4,3770.3,5.277]
[1753568436965,64.46107131,3770.4,3770.3,5.80731]
[1753568437160,64.99136131,3770.4,3770.3,7.69694912]
[1753568437358,64.46107131,3770.4,3770.3,7.69694912]
[1753568437561,64.46107131,3770.4,3770.3,5.80731]
[1753568438065,39.52936131,3770.4,3770.3,5.80731]
[1753568438266,64.99336131,3770.4,3770.3,5.80731]
[1753568438466,64.45607131,3770.4,3770.3,5.80731]
[1753568438667,64.98636131,3770.4,3770.3,5.80731]
[1753568438867,64.98636131,3770.4,3770.3,5.277]
[1753568439070,64.98636131,3770.4,3770.3,5.80731]
[1753568439269,64.98636131,3770.4,3770.3,7.69690395]
[1753568439571,64.97836131,3770.4,3770.3,7.16659395]
[1753568439764,64.97836131,3770.4,3770.3,1.88959395]
[1753568440763,6.06541,3770.3,3770.2,1.88959395]
[1753568440968,4.35596,3769.9,3769.8,1.04399428]
[1753568441266,51.3817768,3769.9,3769.8,1.04399428]
[1753568441468,41.02773131,3769.9,3769.8,1.04399428]
[1753568441664,66.44573131,3769.9,3769.8,1.04399428]
[1753568441869,66.44573131,3769.9,3769.8,0.19629428]
[1753568442172,66.44573131,3769.9,3769.1,3.2078]
[1753568442173,4.35606,3769.2,3769.1,0.53047]
[1753568442358,3.8256,3769.1,3769.0,2.82828]
[1753568442559,4.3561,3768.9,3768.8,2.2978]
[1753568442765,29.7861,3768.9,3768.8,0.6776]
[1753568442969,2.12163,3768.7,3768.6,0.8477]
[1753568443166,0.9652,3768.4,3768.3,8.36001414]
[1753568443363,13.16668961,3768.6,3768.5,5.99966]
[1753568443565,29.76514,3768.6,3768.5,3.0488]
[1753568443769,47.6336168,3768.6,3768.5,3.0488]
[1753568443971,48.1641568,3768.6,3768.5,3.0488]
[1753568444366,48.1641568,3768.6,3768.5,4.0999]
[1753568444766,4.35617,3768.5,3768.4,2.0944]
[1753568444964,17.52285961,3768.5,3768.4,4.0999]
[1753568445268,37.82014131,3768.5,3768.4,4.0999]
[1753568445669,37.28957131,3768.5,3768.4,4.63047]
[1753568445865,36.41527131,3768.5,3768.4,5.4691]
[1753568446270,36.41527131,3768.5,3768.4,5.99967]
[1753568446472,36.41527131,3768.5,3768.4,5.4691]
[1753568446671,36.41527131,3768.5,3768.4,5.99967]
[1753568448270,36.94583131,3768.5,3768.4,5.99967]